bitfinex/quotes_SOLUSD_20251125
["timestamp","ask_amount","ask_price","bid_price","bid_amount"]
[1764069308183,11.96644813,136.35,136.31,3.24]
[1764069308378,2.31434164,136.32,136.31,3.24]
[1764069308973,2.31434164,136.32,136.31,3.93]
[1764069309375,9.65210649,136.32,136.29,8.02704687]
[1764069309600,9.65210649,136.32,136.3,3.24]
[1764069310800,2.31434164,136.31,136.3,3.24]
[1764069311105,0.28432314,136.29,136.25,0.2]
[1764069311392,2.31434164,136.26,136.25,3.44]
[1764069311608,2.31434164,136.26,136.25,4.13]
[1764069311901,2.31434164,136.27,136.25,11.46944954]
[1764069312425,0.7,136.28,136.25,11.46944954]
[1764069312426,0.7,136.28,136.25,0.2]
[1764069312701,4.32450824,136.27,136.25,3.44]
[1764069312877,3.62450824,136.27,136.25,4.13]
[1764069313080,3.62450824,136.27,136.25,11.46943938]
[1764069314381,3.62450824,136.27,136.25,4.13]
[1764069314602,3.62450824,136.27,136.25,11.46937965]
[1764069314905,8.03785073,136.28,136.25,4.13]
[1764069315079,3.62450824,136.26,136.25,4.13]
[1764069315280,3.62450824,136.26,136.25,11.46944954]
[1764069315782,0.7,136.28,136.25,11.46944954]
[1764069315994,3.62450824,136.26,136.25,11.46944954]
[1764069316196,3.62450824,136.27,136.25,11.46944954]
[1764069316698,3.62450824,136.27,136.26,3.24]
[1764069318995,4.32450824,136.27,136.26,3.24]
[1764069319582,4.32450824,136.27,136.25,0.2]
[1764069319793,3.62450824,136.26,136.25,3.44]
[1764069321410,4.32450824,136.26,136.25,3.44]
[1764069322101,3.62450824,136.26,136.25,3.44]
[1764069325114,3.62450824,136.27,136.25,11.43944954]
[1764069325321,12.57661473,136.28,136.26,0.66]
[1764069325614,9.49994492,136.3,136.26,0.66]
[1764069325815,103.9,136.31,136.28,3.62450824]
[1764069325990,103.9,136.31,136.29,14.20180371]
[1764069326190,4.31450824,136.35,136.3,3.62450824]
[1764069326414,4.31450824,136.35,136.31,3.62450824]
[1764069326642,4.31450824,136.35,136.32,3.24]
[1764069326939,4.31450824,136.35,136.32,3.9]
[1764069327420,4.31450824,136.35,136.32,11.23547]
[1764069328206,4.31450824,136.35,136.32,10.57547]
[1764069328404,4.31450824,136.35,136.32,11.23547]
[1764069328627,116.33445316,136.36,136.33,0.66]
[1764069328804,103.9,136.36,136.33,0.66]
[1764069329426,103.9,136.36,136.34,7.33460466]
[1764069329637,103.9,136.36,136.35,3.24]
[1764069330206,3.62450824,136.38,136.35,3.9]
[1764069330403,3.62450824,136.38,136.36,0.66]
[1764069330622,0.14216157,136.38,136.36,0.66]
[1764069331124,3.76666981,136.38,136.36,0.66]
[1764069331913,3.76666981,136.38,136.36,7.99331159]
[1764069332112,3.76666981,136.38,136.36,0.66]
[1764069332320,3.62450824,136.37,136.35,10.57386114]
[1764069332518,3.62450824,136.37,136.35,3.24]
[1764069332820,3.62450824,136.37,136.35,3.9]
[1764069334532,3.62450824,136.38,136.36,0.66]
[1764069335437,3.62450824,136.38,136.35,10.57381765]
[1764069335639,4.31450824,136.38,136.35,11.23381765]
[1764069335942,4.31450824,136.38,136.33,7.33492776]
[1764069335943,3.62450824,136.36,136.33,7.33492776]
[1764069336133,4.31450824,136.35,136.33,7.33492776]
[1764069336336,3.62450824,136.34,136.33,3.24]
[1764069337132,3.62450824,136.35,136.33,11.23502786]
[1764069337319,0.69,136.36,136.33,11.23502786]
[1764069337525,20.62337224,136.38,136.34,4.28450824]
[1764069337724,12.43445316,136.39,136.35,3.62450824]
[1764069337921,12.43445316,136.39,136.36,3.24]
[1764069338147,12.43445316,136.39,136.36,3.9]
[1764069338325,3.62450824,136.39,136.37,0.66]
[1764069340242,4.31450824,136.39,136.36,10.57308247]
[1764069341034,4.31450824,136.39,136.36,11.23308247]
[1764069341422,3.62450824,136.39,136.36,11.23308247]
[1764069341618,3.62450824,136.39,136.37,3.9]
[1764069341844,9.64210649,136.4,136.37,3.9]
[1764069341845,3.62450824,136.4,136.37,3.9]
[1764069342042,3.62450824,136.4,136.38,0.66]
[1764069342846,20.62337224,136.41,136.38,7.99233503]
[1764069343050,3.62450824,136.39,136.35,7.99383555]
[1764069343251,3.62450824,136.38,136.36,3.24]
[1764069343551,4.31450824,136.39,136.36,3.9]
[1764069344124,3.62450824,136.39,136.37,0.66]
[1764069347259,3.62450824,136.39,136.37,3.9]
[1764069349364,4.31450824,136.39,136.37,3.24]
[1764069350261,4.31450824,136.39,136.37,11.23297094]
[1764069351067,3.62450824,136.39,136.37,11.23297094]
[1764069353461,4.32450824,136.38,136.36,7.33330267]
[1764069353656,3.62450824,136.38,136.37,3.24]
[1764069354869,3.62450824,136.38,136.37,10.57299112]
[1764069355170,4.32450824,136.39,136.37,11.25299112]
[1764069355466,4.32450824,136.39,136.37,10.57299112]
[1764069357267,4.30450824,136.39,136.37,11.25299112]
[1764069359172,4.30450824,136.39,136.37,10.57299112]
[1764069360884,4.30450824,136.38,136.37,3.24]
[1764069361073,0.68,136.38,136.37,3.24]
[1764069361385,4.30450824,136.39,136.37,3.24]
[1764069362183,3.62450824,136.38,136.37,3.24]
[1764069365881,4.30450824,136.39,136.37,3.24]
[1764069366378,4.30450824,136.39,136.37,11.28286301]
[1764069366564,4.30450824,136.39,136.37,10.57286301]
[1764069368683,4.30450824,136.39,136.37,3.24]
[1764069371173,4.30450824,136.39,136.37,10.57297349]
[1764069371579,0.68,136.39,136.37,10.57297349]
[1764069371809,4.30450824,136.39,136.37,10.57297349]
[1764069372587,2.99549796,136.39,136.37,10.57297349]
[1764069373116,2.99549796,136.39,136.37,3.24]
[1764069373417,0.68,136.38,136.37,3.24]
[1764069373615,11.80544288,136.38,136.35,7.33366237]
[1764069373802,2.31549796,136.36,136.33,3.22]
[1764069374001,2.31549796,136.34,136.33,3.22]
[1764069374205,11.94760445,136.37,136.34,0.71]
[1764069374606,11.26760445,136.37,136.34,0.71]
[1764069375132,11.94760445,136.37,136.34,8.04428878]
[1764069375311,2.99549796,136.36,136.34,8.04428878]
[1764069375499,2.31549796,136.36,136.34,8.04428878]
[1764069377425,2.99549796,136.4,136.35,3.02549796]
[1764069377602,2.99549796,136.4,136.36,5.53549796]
[1764069377803,2.99549796,136.4,136.36,6.24549796]
[1764069378128,2.99549796,136.4,136.37,0.71]
[1764069378721,0.68,136.4,136.37,0.71]
[1764069379098,0.68,136.4,136.38,7.33245343]
[1764069381324,16.14078814,136.41,136.38,7.33245343]
[1764069381626,9.48994492,136.41,136.38,0.71]
[1764069382628,0.68,136.4,136.38,0.71]
[1764069382833,0.68,136.4,136.37,7.33299112]
[1764069383034,11.26760445,136.39,136.36,10.55348637]
[1764069383234,8.95210649,136.39,136.36,11.25348637]
[1764069383410,9.65210649,136.39,136.36,11.25348637]
[1764069385035,0.7,136.38,136.35,7.33390934]
[1764069385241,0.7,136.38,136.36,3.22]
[1764069385928,0.7,136.38,136.36,3.92]
[1764069387138,0.7,136.38,136.36,11.25336361]
[1764069387508,8.95210649,136.39,136.37,0.7]
[1764069387730,9.65210649,136.39,136.37,0.7]
[1764069389341,9.65210649,136.39,136.36,11.25336361]
[1764069390138,9.65210649,136.39,136.36,10.55336361]
[1764069390322,8.95210649,136.39,136.37,0.7]
[1764069391438,9.65210649,136.39,136.36,11.25336361]
[1764069391729,9.65210649,136.39,136.36,10.55336361]
[1764069391936,9.65210649,136.39,136.37,0.7]
[1764069395139,9.65210649,136.39,136.36,11.25336361]
[1764069395323,9.65210649,136.39,136.36,10.55336361]
[1764069395522,9.65210649,136.39,136.37,8.03298047]
[1764069396535,9.65210649,136.39,136.37,7.33298047]
[1764069396716,9.50994492,136.4,136.37,0.7]
[1764069396918,8.95210649,136.4,136.38,0.7]
[1764069397125,9.65210649,136.4,136.38,0.7]
[1764069398544,123.32436196,136.42,136.38,0.7]
[1764069398733,8.95210649,136.41,136.39,7.33191582]
[1764069398940,9.65210649,136.41,136.39,10.55191582]
[1764069399441,9.65210649,136.41,136.39,11.25191582]
[1764069399611,11.96760445,136.41,136.39,11.25191582]
[1764069400642,11.96760445,136.41,136.39,10.55191582]
[1764069401138,11.96760445,136.41,136.39,11.25191582]
[1764069401437,11.96760445,136.41,136.39,10.55191582]
[1764069401641,11.96760445,136.41,136.39,11.25191582]
[1764069402715,11.96760445,136.41,136.39,10.55191582]
[1764069403218,11.96760445,136.41,136.39,11.25191582]
[1764069403409,11.96760445,136.41,136.39,10.55191582]
[1764069403624,11.96760445,136.41,136.39,11.25191582]
[1764069404022,11.96760445,136.41,136.39,10.55191582]
[1764069404231,11.96760445,136.41,136.39,11.25191582]
[1764069405320,11.96760445,136.41,136.39,10.55191582]
[1764069406943,2.31549796,136.4,136.39,3.22]
[1764069407159,8.95210649,136.39,136.37,3.22]
[1764069407445,2.31549796,136.38,136.37,3.22]
[1764069408534,2.31549796,136.39,136.37,11.25299112]
[1764069410638,9.50994492,136.4,136.37,10.55299112]
[1764069410844,11.82544288,136.4,136.38,0.7]
[1764069411534,3.01549796,136.39,136.37,10.55299112]
[1764069411721,0.14216157,136.37,136.33,0.7]
[1764069411921,2.31549796,136.34,136.33,3.22]
[1764069412153,2.31549796,136.35,136.33,3.92]
[1764069412961,2.31549796,136.35,136.33,11.25510449]
[1764069413150,2.31549796,136.35,136.33,3.92]
[1764069414146,2.31549796,136.35,136.33,11.25511341]
[1764069415050,3.01549796,136.36,136.34,0.66]
[1764069417633,3.01549796,136.36,136.33,11.25511341]
[1764069418454,0.7,136.36,136.33,11.25511341]
[1764069418638,3.01549796,136.36,136.33,11.25511341]
[1764069419233,3.01549796,136.36,136.34,0.7]
[1764069419435,0.72,136.4,136.35,2.31549796]
[1764069419630,3.03549796,136.4,136.36,5.53549796]
[1764069420160,115.82544288,136.41,136.37,3.01549796]
[1764069420469,104.7,136.41,136.38,2.31549796]
[1764069420630,104.7,136.41,136.38,3.01549796]
[1764069420830,107.01549796,136.41,136.39,3.92]
[1764069421437,107.01549796,136.41,136.39,11.25187641]
[1764069422160,105.42,136.41,136.39,11.25187641]
[1764069422453,105.42,136.41,136.39,3.92]
[1764069422755,107.73549796,136.41,136.39,3.22]
[1764069424248,3.03549796,136.4,136.39,3.22]
[1764069424759,2.31549796,136.4,136.39,3.22]
[1764069426860,2.31549796,136.4,136.38,0.7]
[1764069427173,2.31549796,136.4,136.38,3.22]
[1764069427470,107.73549796,136.41,136.38,11.25244677]
[1764069430046,107.73549796,136.41,136.37,8.03280096]
[1764069430047,3.03549796,136.4,136.37,8.03280096]
[1764069430239,3.03549796,136.4,136.38,3.22]
[1764069430939,3.03549796,136.39,136.35,0.7]
[1764069431139,2.31549796,136.37,136.36,3.22]
[1764069431339,3.03549796,136.38,136.36,3.22]
[1764069431954,3.03549796,136.37,136.33,7.33514266]
[1764069432160,2.31549796,136.36,136.34,3.22]
[1764069432334,3.03549796,136.36,136.34,3.22]
[1764069432738,2.31549796,136.36,136.34,3.22]
[1764069432938,3.03549796,136.36,136.34,3.22]
[1764069433165,3.03549796,136.36,136.34,3.92]
[1764069433344,3.03549796,136.36,136.34,3.22]
[1764069433542,3.03549796,136.36,136.34,3.92]
[1764069433743,2.31549796,136.36,136.34,3.92]
[1764069434245,0.31549796,136.36,136.34,3.92]
[1764069434454,0.31549796,136.36,136.34,11.25450837]
[1764069434641,3.61935708,136.36,136.34,11.25450837]
[1764069435067,4.33935708,136.37,136.34,11.25450837]
[1764069435483,4.33935708,136.37,136.34,3.92]
[1764069435761,4.33935708,136.37,136.34,11.25457969]
[1764069436352,4.33935708,136.37,136.34,8.03457969]
[1764069436554,4.33935708,136.37,136.34,11.25457969]
[1764069436871,4.33935708,136.37,136.34,8.03457969]
[1764069437070,4.33935708,136.37,136.34,11.25457969]
[1764069437957,4.33935708,136.37,136.35,3.92]
[1764069438265,3.61935708,136.37,136.35,0.7]
[1764069438567,3.61935708,136.38,136.35,3.92]
[1764069438782,4.33935708,136.39,136.35,3.92]
[1764069438964,4.33935708,136.39,136.36,0.7]
[1764069439870,3.61935708,136.39,136.36,8.03326512]
[1764069440270,121.728864,136.41,136.37,0.7]
[1764069440573,125.34822108,136.41,136.38,3.22]
[1764069441043,131.95907218,136.41,136.38,3.92]
[1764069441242,0.72,136.4,136.38,3.92]
[1764069442056,0.72,136.4,136.38,11.2523544]
[1764069443750,8.90994492,136.42,136.39,0.66]
[1764069444071,8.90994492,136.42,136.39,11.61095642]
[1764069444367,8.90994492,136.42,136.4,3.61935708]
[1764069444368,0.1,136.42,136.4,3.61935708]
[1764069444573,0.1,136.42,136.4,0.66]
[1764069445171,0.82,136.42,136.4,0.66]
[1764069446361,0.82,136.42,136.4,7.99123397]
[1764069447272,0.82,136.42,136.4,7.33123397]
[1764069447477,4.43935708,136.42,136.4,7.33123397]
[1764069448072,4.43935708,136.42,136.4,7.99123397]
[1764069448377,4.43935708,136.42,136.39,7.99191582]
[1764069450182,4.43935708,136.42,136.4,0.66]
[1764069452282,3.61935708,136.41,136.39,7.99191582]
[1764069452460,4.33935708,136.41,136.39,7.99191582]
[1764069452659,4.33935708,136.41,136.39,7.33191582]
[1764069452860,4.33935708,136.41,136.39,10.55191582]
[1764069453786,0.72,136.4,136.39,3.22]
[1764069454082,4.33935708,136.4,136.39,3.22]
[1764069455490,3.61935708,136.4,136.39,3.22]
[1764069457376,12.57146357,136.41,136.39,3.88]
[1764069457764,13.29146357,136.41,136.39,3.88]
[1764069458493,13.29146357,136.41,136.38,7.33223709]
[1764069458666,13.29146357,136.41,136.39,3.22]
[1764069459368,3.61935708,136.4,136.39,3.22]
[1764069459568,4.33935708,136.4,136.38,10.55223709]
[1764069459781,4.33935708,136.39,136.36,7.33329534]
[1764069459974,3.61935708,136.38,136.36,11.21329534]
[1764069461888,3.61935708,136.37,136.35,7.33394193]
[1764069462068,3.61935708,136.37,136.36,3.22]
[1764069462668,0.72,136.38,136.36,3.88]
[1764069462669,3.61935708,136.38,136.36,3.88]
[1764069462868,4.33935708,136.38,136.36,3.88]
[1764069463488,4.33935708,136.38,136.33,3.61935708]
[1764069463489,4.33935708,136.37,136.33,7.33491944]
[1764069463695,3.61935708,136.35,136.34,3.88]
[1764069464266,0.72,136.36,136.34,3.88]
[1764069464267,4.33935708,136.36,136.34,3.88]
[1764069464467,3.61935708,136.36,136.34,3.88]
[1764069465517,4.33935708,136.35,136.33,3.22]
[1764069465669,3.61935708,136.34,136.33,3.22]
[1764069466078,4.33935708,136.35,136.33,3.22]
[1764069466678,4.33935708,136.35,136.33,3.88]
[1764069467567,4.33935708,136.35,136.33,3.22]
[1764069467766,4.33935708,136.35,136.33,3.88]
[1764069468694,3.61935708,136.35,136.33,3.88]
[1764069469101,4.33935708,136.35,136.33,3.88]
[1764069469800,3.61935708,136.35,136.33,11.21508961]
[1764069470403,12.57146357,136.38,136.34,4.27935708]
[1764069470782,8.95210649,136.38,136.35,0.66]
[1764069471177,8.95210649,136.39,136.36,3.22]
[1764069471372,104.7,136.4,136.36,14.17237414]
[1764069471578,109.03935708,136.4,136.37,0.66]
[1764069471998,4.33935708,136.39,136.36,10.55301706]
[1764069472306,3.61935708,136.38,136.36,11.21301706]
[1764069474005,4.33935708,136.39,136.36,11.21301706]
[1764069474314,13.149302,136.39,136.36,11.21301706]
[1764069475680,3.61935708,136.38,136.36,3.88]
[1764069475885,3.61935708,136.37,136.35,7.33383169]
[1764069476098,3.61935708,136.36,136.34,3.22]
[1764069476289,3.61935708,136.35,136.34,3.22]
[1764069477207,4.32935708,136.36,136.34,3.22]
[1764069477510,4.32935708,136.36,136.34,10.55450348]
[1764069477697,4.32935708,136.36,136.34,11.21450348]
[1764069478023,3.61935708,136.36,136.34,11.21450348]
[1764069478221,4.30935708,136.36,136.34,3.88]
[1764069478521,4.30935708,136.36,136.34,3.22]
[1764069479896,4.30935708,136.36,136.33,7.99488674]
[1764069480296,4.30935708,136.36,136.34,3.22]
[1764069482125,0.69,136.35,136.34,3.22]
[1764069482327,4.30935708,136.35,136.33,3.22]
[1764069482511,3.61935708,136.34,136.33,3.22]
[1764069483103,4.30935708,136.35,136.33,3.22]
[1764069483298,8.80994492,136.37,136.34,7.99460466]
[1764069483498,13.119302,136.37,136.34,7.99460466]
[1764069485295,3.76151865,136.38,136.35,0.66]
[1764069485494,8.95210649,136.38,136.35,0.66]
[1764069485822,9.64210649,136.38,136.35,0.66]
[1764069486125,13.26146357,136.38,136.35,0.66]
[1764069487330,8.95210649,136.39,136.37,7.33299112]
[1764069487527,8.95210649,136.39,136.37,7.99299112]
[1764069487829,8.95210649,136.39,136.38,0.66]
[1764069488038,108.31935708,136.4,136.38,0.66]
[1764069488226,104.7,136.4,136.38,0.66]
[1764069488913,104.7,136.4,136.37,7.33299112]
[1764069489111,104.7,136.4,136.38,0.66]
[1764069489717,108.31935708,136.4,136.38,0.66]
[1764069491531,109.00935708,136.4,136.38,0.66]
[1764069492335,108.31935708,136.4,136.38,7.99220565]
[1764069492528,104.7,136.4,136.38,7.99220565]
[1764069492829,104.7,136.4,136.39,3.22]
[1764069493708,0.1,136.42,136.39,7.49935708]
[1764069493922,0.1,136.42,136.41,10.95019792]
[1764069494317,0.1,136.42,136.41,11.61019792]
[1764069494624,0.1,136.42,136.41,10.30420839]
[1764069495217,0.1,136.42,136.41,26.61307239]
[1764069495624,0.1,136.42,136.41,48.64031274]
[1764069496736,0.1,136.42,136.41,29.61643994]
[1764069498235,0.1,136.42,136.41,11.21084084]
[1764069498433,3.10336755,136.42,136.37,18.99198718]
[1764069498635,2.31336755,136.41,136.38,14.21582098]
[1764069498934,2.31336755,136.41,136.38,27.52131743]
[1764069499136,2.31336755,136.41,136.39,0.66]
[1764069499327,2.41336755,136.42,136.39,0.66]
[1764069499740,3.10336755,136.42,136.4,7.33137829]
[1764069499942,2.41336755,136.42,136.4,7.33137829]
[1764069500136,3.10336755,136.42,136.4,7.33137829]
[1764069500323,3.10336755,136.42,136.41,3.22]
[1764069500729,2.41336755,136.42,136.41,3.22]
[1764069501611,0.1,136.42,136.41,10.55084084]
[1764069503237,2.41336755,136.42,136.41,10.55084084]
[1764069504041,0.1,136.42,136.41,10.55084084]
[1764069504541,0.1,136.42,136.41,3.22]
[1764069504840,3.11336755,136.42,136.41,3.22]
[1764069505943,0.1,136.42,136.41,10.55084084]
[1764069507352,0.8,136.42,136.41,10.55084084]
[1764069507644,0.1,136.42,136.41,10.55084084]
[1764069507834,2.41336755,136.42,136.41,10.55084084]
[1764069508034,0.1,136.42,136.41,10.55084084]
[1764069511827,3.11336755,136.42,136.41,10.55084084]
[1764069512553,3.11336755,136.42,136.41,3.22]
[1764069513655,3.11336755,136.42,136.4,10.55113475]
[1764069514929,2.41336755,136.42,136.4,10.55113475]
[1764069515162,2.41336755,136.42,136.4,11.27113475]
[1764069515345,2.41336755,136.42,136.41,3.22]
[1764069515660,0.1,136.42,136.41,3.94]
[1764069515831,0.1,136.42,136.41,3.22]
[1764069516357,0.1,136.42,136.4,8.05113475]
[1764069516559,0.1,136.42,136.41,3.22]
[1764069519331,0.1,136.42,136.41,3.94]
[1764069519742,0.1,136.42,136.41,3.22]
[1764069521672,0.1,136.42,136.41,10.55084084]
[1764069525388,0.1,136.42,136.41,3.22]
[1764069525679,0.1,136.42,136.41,10.55084084]
[1764069525869,0.1,136.42,136.41,11.27084084]
[1764069526558,0.1,136.42,136.41,13.58420839]
[1764069527780,1e-08,136.42,136.41,13.58420839]
[1764069527982,1e-08,136.42,136.41,24.70752086]
[1764069528655,1e-08,136.42,136.41,41.300708]
[1764069528853,1e-08,136.45,136.44,16.308864]
[1764069529057,1e-08,136.45,136.44,71.84223155]
[1764069529363,1e-08,136.45,136.44,72.56223155]
[1764069529568,1e-08,136.45,136.44,82.82734806]
[1764069530487,1e-08,136.45,136.44,83.1116712]
[1764069530677,0.1,136.49,136.48,16.308864]
[1764069530987,0.1,136.5,136.48,21.84223155]
[1764069531159,0.1,136.52,136.49,3.03336755]
[1764069531357,0.1,136.52,136.51,2.31336755]
[1764069531578,0.1,136.52,136.51,9.63883821]
[1764069531779,0.1,136.53,136.51,10.35883821]
[1764069531989,1e-08,136.54,136.52,56.25336755]
[1764069532294,1e-08,136.54,136.53,2.31336755]
[1764069532477,1e-08,136.54,136.53,3.03336755]
[1764069532671,0.1,136.56,136.54,50.72]
[1764069532871,0.1,136.56,136.55,5.53336755]
[1764069533093,0.1,136.56,136.55,22.53223155]
[1764069533273,0.1,136.56,136.44,0.69]
[1764069533274,11.92331247,136.56,136.44,0.69]
[1764069533488,2.31336755,136.46,136.43,29.56341207]
[1764069533875,2.31336755,136.5,136.42,10.95673457]
[1764069533876,0.61,136.48,136.42,10.95673457]
[1764069534082,3.03653415,136.56,136.47,2.31336755]
[1764069534292,2.31336755,136.48,136.46,3.24]
[1764069535481,2.31336755,136.47,136.44,7.32906939]
[1764069535676,2.31336755,136.46,136.44,3.24]
[1764069535981,0.61,136.48,136.44,3.24]
[1764069535982,2.31336755,136.47,136.44,3.93]
[1764069537486,2.31336755,136.47,136.44,11.25870891]
[1764069537871,2.31336755,136.48,136.45,0.72]
[1764069539375,2.31336755,136.48,136.45,8.04823734]
[1764069539777,8.95210649,136.49,136.45,8.04823734]
[1764069539992,2.31336755,136.48,136.45,8.04823734]
[1764069540504,18.3128024,136.52,136.45,8.04823734]
[1764069540505,0.1,136.57,136.5,50.0]
[1764069540682,0.1,136.57,136.55,2.31336755]
[1764069540997,1e-08,136.57,136.55,5.55336755]
[1764069541205,1e-08,136.58,136.56,21.6555991]
[1764069541386,0.1,136.59,136.56,21.6555991]
[1764069541387,1e-08,136.59,136.58,23.63058021]
[1764069541582,1e-08,136.61,136.58,79.18394776]
[1764069541793,1e-08,136.61,136.6,2.31336755]
[1764069542211,1e-08,136.61,136.6,3.45985226]
[1764069542517,1e-08,136.61,136.6,69.76871626]
[1764069542674,1e-08,136.61,136.6,72.94467875]
[1764069543201,1e-08,136.61,136.6,133.58593784]
[1764069543379,1e-08,136.61,136.6,139.07526788]
[1764069543699,1e-08,136.61,136.6,27.58950821]
[1764069543876,1e-08,136.61,136.6,32.35883825]
[1764069544776,1e-08,136.61,136.59,7.32111531]
[1764069544976,0.70000001,136.61,136.6,3.24]
[1764069546003,6.18933005,136.61,136.6,3.24]
[1764069547610,6.18933005,136.61,136.57,7.32214982]
[1764069547814,0.7,136.6,136.59,3.24]
[1764069548329,6.18933004,136.6,136.57,7.32214982]
[1764069548486,6.18933004,136.6,136.58,3.24]
[1764069548884,1e-08,136.61,136.58,3.24]
[1764069549084,0.70000001,136.61,136.58,3.24]
[1764069549583,0.70000001,136.61,136.58,10.56121599]
[1764069549920,1e-08,136.61,136.59,5.48933004]
[1764069550097,1e-08,136.61,136.59,6.20933004]
[1764069550412,1e-08,136.61,136.59,0.72]
[1764069550613,1e-08,136.61,136.58,31.11483655]
[1764069550791,0.70000001,136.61,136.59,3.24]
[1764069550991,1e-08,136.61,136.59,3.24]
[1764069551689,1e-08,136.61,136.6,7.32064421]
[1764069554595,1e-08,136.61,136.59,7.32118008]
[1764069554925,6.18933005,136.61,136.6,3.24]
[1764069555920,0.70000001,136.61,136.6,3.24]
[1764069556496,1e-08,136.61,136.6,10.56064421]
[1764069558900,1e-08,136.61,136.6,3.24]
[1764069559102,0.70000001,136.61,136.6,3.24]
[1764069559730,0.70000001,136.61,136.58,7.32157682]
[1764069560033,0.70000001,136.61,136.59,3.24]
[1764069560731,10.26442307,136.61,136.59,3.24]
[1764069561539,0.70000001,136.61,136.59,10.56115081]
[1764069562233,0.70000001,136.61,136.59,20.12557387]
[1764069562412,1e-08,136.61,136.59,20.12557387]
[1764069562931,0.70000001,136.61,136.59,10.56115081]
[1764069563232,10.26442307,136.61,136.59,3.24]
[1764069563435,0.70000001,136.61,136.59,3.24]
[1764069563814,1e-08,136.61,136.59,10.56100227]
[1764069565734,0.70000001,136.61,136.59,10.56100227]
[1764069569040,1e-08,136.61,136.59,10.56100227]
[1764069570542,10.26442306,136.6,136.55,16.308864]
[1764069570723,9.56442306,136.56,136.54,3.24]
[1764069570929,9.56442306,136.55,136.54,3.24]
[1764069571455,8.80994492,136.59,136.54,3.24]
[1764069571655,9.56442306,136.56,136.54,3.24]
[1764069572019,9.56442306,136.55,136.54,3.24]
[1764069573046,9.56442306,136.55,136.54,10.56386113]
[1764069573540,7.32027765,136.61,136.54,11.22386113]
[1764069573741,9.56442306,136.58,136.54,29.53351397]
[1764069574122,10.26442306,136.58,136.54,29.53351397]
[1764069575238,9.56442306,136.58,136.55,0.66]
[1764069575439,9.56442306,136.59,136.55,0.66]
[1764069575945,10.26442306,136.59,136.55,0.66]
[1764069576145,9.56442306,136.59,136.54,38.43793703]
[1764069576322,9.56442306,136.57,136.54,25.63351397]
[1764069576525,9.56442306,136.57,136.55,3.24]
[1764069576933,9.56442306,136.57,136.54,25.63351397]
[1764069576934,10.26442306,136.56,136.52,18.31183954]
[1764069577135,10.26442306,136.56,136.53,3.24]
[1764069577333,0.7,136.55,136.53,3.24]
[1764069577950,9.56442306,136.54,136.51,7.32528098]
[1764069578123,9.56442306,136.52,136.49,7.32654406]
[1764069578447,9.56442306,136.52,136.5,3.24]
[1764069578638,9.56442306,136.53,136.5,3.24]
[1764069578840,9.56442306,136.54,136.5,3.9]
[1764069579033,9.56442306,136.54,136.51,7.32547066]
[1764069579229,10.26442306,136.54,136.51,7.32547066]
[1764069579442,9.56442306,136.57,136.52,0.66]
[1764069579760,9.56442306,136.57,136.53,12.80442306]
[1764069580054,0.7,136.57,136.53,12.80442306]
[1764069580343,0.7,136.57,136.54,9.56442306]
[1764069580717,0.7,136.57,136.53,13.46442306]
[1764069580924,16.13273343,136.56,136.54,3.24]
[1764069581236,9.56442306,136.55,136.51,7.3253278]
[1764069581436,9.50994492,136.56,136.52,3.24]
[1764069581853,0.7,136.55,136.52,3.24]
[1764069582342,10.26442306,136.55,136.52,3.24]
[1764069582652,9.56442306,136.54,136.52,10.56478397]
[1764069583825,10.26442306,136.53,136.48,18.31731403]
[1764069584144,9.56442306,136.51,136.48,18.31731403]
[1764069584451,9.56442306,136.51,136.49,3.24]
[1764069584843,9.56442306,136.51,136.49,10.56654406]
[1764069585047,10.26442306,136.52,136.49,10.56654406]
[1764069586033,9.56442306,136.5,136.45,18.52056449]
[1764069586350,9.56442306,136.5,136.46,3.24]
[1764069586651,10.26442306,136.5,136.46,3.24]
[1764069586835,9.56442306,136.5,136.46,3.24]
[1764069587034,0.7,136.49,136.46,10.56815477]